[Event "*** Titled Tuesday 3|2 Blitz"]
[Site "Chess.com"]
[Date "2017.05.02"]
[Round "6"]
[White "Noukii"]
[Black "biostatistician"]
[Result "1-0"]
[WhiteElo "2638"]
[BlackElo "2411"]
[TimeControl "180+2"]
[EndTime "14:20:24 PDT"]
[Termination "Noukii won on time"]

1. d4 {[%clk 0:03:02]} 1... Nf6 {[%clk 0:03:00.3]} 2. c4 {[%clk 0:03:02.7]} 2...
g6 {[%clk 0:03:01.7]} 3. Nc3 {[%clk 0:03:03.8]} 3... Bg7 {[%clk 0:03:03.6]} 4.
Nf3 {[%clk 0:03:03.6]} 4... O-O {[%clk 0:03:03.6]} 5. Bg5 {[%clk 0:03:05.2]}
5... b6 {[%clk 0:03:03.5]} 6. e3 {[%clk 0:03:06.2]} 6... Bb7 {[%clk 0:03:04.5]}
7. Qc2 {[%clk 0:03:05.6]} 7... d5 {[%clk 0:03:00.4]} 8. cxd5 {[%clk 0:02:51.9]}
8... Nxd5 {[%clk 0:03:02.3]} 9. Be2 {[%clk 0:02:53.3]} 9... c5 {[%clk
0:02:59.4]} 10. dxc5 {[%clk 0:02:43.9]} 10... Nxc3 {[%clk 0:02:51]} 11. bxc3
{[%clk 0:02:39.2]} 11... bxc5 {[%clk 0:02:51.8]} 12. Rb1 {[%clk 0:02:36.4]}
12... Qc7 {[%clk 0:02:52.4]} 13. O-O {[%clk 0:02:30.4]} 13... Nc6 {[%clk
0:02:51.2]} 14. Qa4 {[%clk 0:02:28.1]} 14... Ne5 {[%clk 0:02:28]} 15. Bf4 {[%clk
0:02:10.7]} 15... Bxf3 {[%clk 0:02:14.5]} 16. gxf3 {[%clk 0:02:06.6]} 16... Rab8
{[%clk 0:02:14]} 17. Kg2 {[%clk 0:02:02.3]} 17... Rb6 {[%clk 0:02:08.4]} 18.
Rfd1 {[%clk 0:01:58.8]} 18... Rfb8 {[%clk 0:02:03.7]} 19. Rb3 {[%clk 0:01:59.6]}
19... h6 {[%clk 0:01:50.4]} 20. Rd5 {[%clk 0:01:47]} 20... e6 {[%clk 0:01:25.2]}
21. Rd1 {[%clk 0:01:41.2]} 21... Qb7 {[%clk 0:01:04.6]} 22. Bxe5 {[%clk
0:00:31.1]} 22... Bxe5 {[%clk 0:01:04.9]} 23. Rd7 {[%clk 0:00:32.6]} 23... Rxb3
{[%clk 0:00:53.8]} 24. Rxb7 {[%clk 0:00:29.8]} 24... R3xb7 {[%clk 0:00:53]} 25.
Qa5 {[%clk 0:00:27.1]} 25... Rc7 {[%clk 0:00:39.9]} 26. f4 {[%clk 0:00:27.8]}
26... Bd6 {[%clk 0:00:40.8]} 27. h4 {[%clk 0:00:24.4]} 27... h5 {[%clk
0:00:39.7]} 28. Bc4 {[%clk 0:00:24.9]} 28... Kg7 {[%clk 0:00:37.9]} 29. Kf3
{[%clk 0:00:25.1]} 29... Rb6 {[%clk 0:00:38]} 30. a4 {[%clk 0:00:24.6]} 30...
Be7 {[%clk 0:00:38.4]} 31. Kg3 {[%clk 0:00:24.5]} 31... Rd7 {[%clk 0:00:37.8]}
32. Bb5 {[%clk 0:00:24.5]} 32... Rc7 {[%clk 0:00:34.5]} 33. c4 {[%clk
0:00:25.7]} 33... Bd8 {[%clk 0:00:32]} 34. Qd2 {[%clk 0:00:26.3]} 34... Be7
{[%clk 0:00:30]} 35. Qa5 {[%clk 0:00:27]} 35... Bd8 {[%clk 0:00:29.4]} 36. Qc3+
{[%clk 0:00:28.4]} 36... Bf6 {[%clk 0:00:29.6]} 37. Qd3 {[%clk 0:00:29.9]} 37...
Be7 {[%clk 0:00:30.6]} 38. Qe4 {[%clk 0:00:30.2]} 38... Rd6 {[%clk 0:00:28.2]}
39. Qa8 {[%clk 0:00:31.3]} 39... Rd8 {[%clk 0:00:27.8]} 40. Qe4 {[%clk
0:00:31.5]} 40... Bf6 {[%clk 0:00:26]} 41. a5 {[%clk 0:00:32.9]} 41... Rd2
{[%clk 0:00:23.9]} 42. Qa8 {[%clk 0:00:33]} 42... Rd8 {[%clk 0:00:21]} 43. Qh1
{[%clk 0:00:33.8]} 43... Rd2 {[%clk 0:00:21.1]} 44. a6 {[%clk 0:00:34.8]} 44...
Rd8 {[%clk 0:00:16.6]} 45. Qe1 {[%clk 0:00:32.1]} 45... Rd6 {[%clk 0:00:16.9]}
46. Qa5 {[%clk 0:00:33]} 46... Rb6 {[%clk 0:00:17.3]} 47. Qd2 {[%clk 0:00:34.1]}
47... Be7 {[%clk 0:00:14.8]} 48. e4 {[%clk 0:00:32.5]} 48... Rd6 {[%clk
0:00:14.6]} 49. Qa5 {[%clk 0:00:33.9]} 49... Rc8 {[%clk 0:00:14.8]} 50. e5
{[%clk 0:00:35.3]} 50... Rd3+ {[%clk 0:00:13.5]} 51. f3 {[%clk 0:00:36.9]} 51...
Bd8 {[%clk 0:00:11.5]} 52. Qa2 {[%clk 0:00:32.9]} 52... Bc7 {[%clk 0:00:12.2]}
53. Qe2 {[%clk 0:00:33.9]} 53... Rcd8 {[%clk 0:00:13.2]} 54. Qe4 {[%clk
0:00:35.5]} 54... Rd1 {[%clk 0:00:11.1]} 55. Qb7 {[%clk 0:00:35.2]} 55... Ba5
{[%clk 0:00:11.5]} 56. Qxa7 {[%clk 0:00:31.6]} 56... Be1+ {[%clk 0:00:11.3]} 57.
Kh3 {[%clk 0:00:32.4]} 57... Bf2 {[%clk 0:00:10.8]} 58. Qe7 {[%clk 0:00:30.5]}
58... R8d2 {[%clk 0:00:10.6]} 59. Qf6+ {[%clk 0:00:30.8]} 59... Kg8 {[%clk
0:00:11]} 60. f5 {[%clk 0:00:12.9]} 60... Rh1+ {[%clk 0:00:10.9]} 61. Kg2 {[%clk
0:00:14.4]} 61... Rg1+ {[%clk 0:00:12.1]} 62. Kh2 {[%clk 0:00:16.1]} 62... Be3+
{[%clk 0:00:08.7]} 63. Kh3 {[%clk 0:00:17.4]} 63... Rh1+ {[%clk 0:00:09.7]} 64.
Kg3 {[%clk 0:00:18.9]} 64... Rg1+ {[%clk 0:00:10.8]} 65. Kh3 {[%clk 0:00:20.4]}
65... Rh1+ {[%clk 0:00:12.1]} 66. Kg3 {[%clk 0:00:22]} 66... Rg1+ {[%clk
0:00:13.3]} 67. Kh3 {[%clk 0:00:23.7]} 67... Rdd1 {[%clk 0:00:12.6]} 68. Qd8+
{[%clk 0:00:22.8]} 68... Kh7 {[%clk 0:00:13.4]} 69. fxg6+ {[%clk 0:00:24.4]}
69... Rxg6 {[%clk 0:00:14.4]} 70. Qxd1 {[%clk 0:00:24.7]} 70... Bf4 {[%clk
0:00:09.7]} 71. Qd3 {[%clk 0:00:25.4]} 71... Kg7 {[%clk 0:00:10.3]} 72. Qxg6+
{[%clk 0:00:27]} 1-0

[Event "*** Titled Tuesday 3|2 Blitz"]
[Site "Chess.com"]
[Date "2017.05.02"]
[Round "6"]
[White "pedromartinez91"]
[Black "underdogchss"]
[Result "1/2-1/2"]
[WhiteElo "2308"]
[BlackElo "2394"]
[TimeControl "180+2"]
[EndTime "14:20:40 PDT"]
[Termination "Game drawn - insufficient material"]

1. Nf3 {[%clk 0:03:02]} 1... Nf6 {[%clk 0:02:58.3]} 2. g3 {[%clk 0:03:02.7]}
2... d5 {[%clk 0:02:57.9]} 3. Bg2 {[%clk 0:03:03.7]} 3... c6 {[%clk 0:02:59.4]}
4. O-O {[%clk 0:03:04.8]} 4... Bg4 {[%clk 0:03:00.5]} 5. Ne5 {[%clk 0:03:05.2]}
5... Bf5 {[%clk 0:02:54.8]} 6. c4 {[%clk 0:03:06]} 6... Nbd7 {[%clk 0:02:52.9]}
7. Nxd7 {[%clk 0:03:04.1]} 7... Qxd7 {[%clk 0:02:54]} 8. cxd5 {[%clk 0:03:04.5]}
8... cxd5 {[%clk 0:02:55.2]} 9. d4 {[%clk 0:03:05.3]} 9... e6 {[%clk 0:02:55.4]}
10. Nc3 {[%clk 0:03:06.3]} 10... Be7 {[%clk 0:02:45.9]} 11. f3 {[%clk
0:03:03.3]} 11... h5 {[%clk 0:02:40.7]} 12. Bg5 {[%clk 0:02:55]} 12... Ng8
{[%clk 0:02:28.4]} 13. Bxe7 {[%clk 0:02:47.4]} 13... Nxe7 {[%clk 0:02:29]} 14.
e4 {[%clk 0:02:44.8]} 14... Bg6 {[%clk 0:02:24.2]} 15. h4 {[%clk 0:02:44.6]}
15... Rd8 {[%clk 0:02:13.5]} 16. f4 {[%clk 0:02:42.1]} 16... dxe4 {[%clk
0:02:13.6]} 17. Nxe4 {[%clk 0:02:13.5]} 17... Qxd4+ {[%clk 0:02:05]} 18. Qxd4
{[%clk 0:02:11.8]} 18... Rxd4 {[%clk 0:02:06.9]} 19. Nc3 {[%clk 0:02:13.4]}
19... b6 {[%clk 0:01:58.4]} 20. Rad1 {[%clk 0:02:13.5]} 20... Rd7 {[%clk
0:01:20.7]} 21. Rxd7 {[%clk 0:01:49.8]} 21... Kxd7 {[%clk 0:01:21.3]} 22. Rd1+
{[%clk 0:01:51.4]} 22... Kc8 {[%clk 0:01:20.6]} 23. Nb5 {[%clk 0:01:52.2]} 23...
a6 {[%clk 0:01:13.9]} 24. Nd6+ {[%clk 0:01:22.3]} 24... Kc7 {[%clk 0:01:04.2]}
25. Nc4 {[%clk 0:01:22.6]} 25... Nc8 {[%clk 0:00:41.1]} 26. Ne5 {[%clk
0:01:21.1]} 26... Rd8 {[%clk 0:00:17.5]} 27. Rc1+ {[%clk 0:01:19.6]} 27... Kd6
{[%clk 0:00:16]} 28. Bb7 {[%clk 0:01:05.2]} 28... Ne7 {[%clk 0:00:10.4]} 29.
Bxa6 {[%clk 0:01:06]} 29... Ra8 {[%clk 0:00:10.2]} 30. Nc4+ {[%clk 0:00:56.9]}
30... Kc5 {[%clk 0:00:10.2]} 31. Ne5+ {[%clk 0:00:29.7]} 31... Kd4 {[%clk
0:00:08.9]} 32. Rd1+ {[%clk 0:00:11.7]} 32... Ke3 {[%clk 0:00:06.9]} 33. Nc4+
{[%clk 0:00:07.3]} 33... Ke2 {[%clk 0:00:06]} 34. Rd2+ {[%clk 0:00:03.7]} 34...
Ke1 {[%clk 0:00:06.1]} 35. Bb5 {[%clk 0:00:05]} 35... Rxa2 {[%clk 0:00:05.5]}
36. Rg2 {[%clk 0:00:05.3]} 36... Ra1 {[%clk 0:00:06.2]} 37. Kh2 {[%clk
0:00:05.2]} 37... Rd1 {[%clk 0:00:06.4]} 38. Ne3 {[%clk 0:00:04.8]} 38... Rd2
{[%clk 0:00:06.9]} 39. Nc2+ {[%clk 0:00:04.9]} 39... Kd1 {[%clk 0:00:06.4]} 40.
Ne3+ {[%clk 0:00:05.1]} 40... Kc1 {[%clk 0:00:07]} 41. b4 {[%clk 0:00:03.2]}
41... Rxg2+ {[%clk 0:00:07.1]} 42. Kxg2 {[%clk 0:00:04.1]} 42... Be4+ {[%clk
0:00:06.8]} 43. Kf2 {[%clk 0:00:04.8]} 43... Nd5 {[%clk 0:00:07.9]} 44. Nxd5
{[%clk 0:00:04.9]} 44... Bxd5 {[%clk 0:00:09.3]} 45. Be8 {[%clk 0:00:05.1]}
45... f6 {[%clk 0:00:10.4]} 46. Bxh5 {[%clk 0:00:05.3]} 46... Kd2 {[%clk
0:00:12]} 47. Be2 {[%clk 0:00:05.5]} 47... Kc3 {[%clk 0:00:12.3]} 48. b5 {[%clk
0:00:06.8]} 48... Kb4 {[%clk 0:00:12.6]} 49. g4 {[%clk 0:00:07.6]} 49... Kc5
{[%clk 0:00:13.1]} 50. h5 {[%clk 0:00:08.7]} 50... Kd4 {[%clk 0:00:11.9]} 51. g5
{[%clk 0:00:09.7]} 51... fxg5 {[%clk 0:00:12.6]} 52. fxg5 {[%clk 0:00:10.5]}
52... Be4 {[%clk 0:00:13]} 53. Bf3 {[%clk 0:00:11.4]} 53... Bf5 {[%clk
0:00:13.2]} 54. Kg3 {[%clk 0:00:12.4]} 54... Ke5 {[%clk 0:00:14.3]} 55. Bg4
{[%clk 0:00:13.3]} 55... Be4 {[%clk 0:00:14.6]} 56. Bf3 {[%clk 0:00:14.2]} 56...
Bf5 {[%clk 0:00:15.6]} 57. Bg4 {[%clk 0:00:15.2]} 57... Bd3 {[%clk 0:00:16.3]}
58. Kf3 {[%clk 0:00:16.2]} 58... Bxb5 {[%clk 0:00:16.4]} 59. h6 {[%clk
0:00:17.2]} 59... gxh6 {[%clk 0:00:17.6]} 60. gxh6 {[%clk 0:00:17.6]} 60... Bd3
{[%clk 0:00:18.6]} 61. Ke3 {[%clk 0:00:18.5]} 61... Bg6 {[%clk 0:00:19.2]} 62.
Bh3 {[%clk 0:00:16.5]} 62... b5 {[%clk 0:00:20]} 63. Bf1 {[%clk 0:00:13.3]}
63... b4 {[%clk 0:00:17.2]} 64. Bd3 {[%clk 0:00:13]} 64... Kf6 {[%clk
0:00:17.8]} 65. h7 {[%clk 0:00:11.8]} 65... Bxh7 {[%clk 0:00:13.1]} 66. Bxh7
{[%clk 0:00:11.9]} 66... Ke5 {[%clk 0:00:14.2]} 67. Be4 {[%clk 0:00:10.5]} 67...
b3 {[%clk 0:00:14.6]} 68. Bb1 {[%clk 0:00:11.3]} 68... Kd5 {[%clk 0:00:14.9]}
69. Kd3 {[%clk 0:00:11.3]} 69... e5 {[%clk 0:00:12.6]} 70. Kc3 {[%clk
0:00:10.7]} 70... e4 {[%clk 0:00:12.5]} 71. Bxe4+ {[%clk 0:00:12.1]} 71... Kxe4
{[%clk 0:00:13.4]} 72. Kxb3 {[%clk 0:00:13.5]} 1/2-1/2

[Event "*** Titled Tuesday 3|2 Blitz"]
[Site "Chess.com"]
[Date "2017.05.02"]
[Round "6"]
[White "Hikaru"]
[Black "Michelangelo"]
[Result "1/2-1/2"]
[WhiteElo "2864"]
[BlackElo "2643"]
[TimeControl "180+2"]
[EndTime "14:21:09 PDT"]
[Termination "Game drawn - insufficient material"]

1. Nf3 {[%clk 0:03:02]} 1... e6 {[%clk 0:02:58.3]} 2. g3 {[%clk 0:03:03.9]} 2...
b5 {[%clk 0:02:58.5]} 3. Bg2 {[%clk 0:03:05.8]} 3... Bb7 {[%clk 0:02:59.8]} 4.
Na3 {[%clk 0:03:05.1]} 4... b4 {[%clk 0:02:52.1]} 5. Nc4 {[%clk 0:03:05.3]} 5...
c5 {[%clk 0:02:42.7]} 6. c3 {[%clk 0:02:59.9]} 6... Nf6 {[%clk 0:02:38.8]} 7.
O-O {[%clk 0:02:57.8]} 7... Be7 {[%clk 0:02:21.4]} 8. cxb4 {[%clk 0:02:28]} 8...
cxb4 {[%clk 0:02:22.1]} 9. b3 {[%clk 0:02:29.6]} 9... O-O {[%clk 0:02:18.3]} 10.
Bb2 {[%clk 0:02:30.5]} 10... a5 {[%clk 0:02:14.9]} 11. a3 {[%clk 0:02:18.9]}
11... Nc6 {[%clk 0:02:07.9]} 12. axb4 {[%clk 0:02:18]} 12... Nxb4 {[%clk
0:02:00.8]} 13. d3 {[%clk 0:02:16.8]} 13... d5 {[%clk 0:01:53.1]} 14. Na3 {[%clk
0:02:08.9]} 14... Rc8 {[%clk 0:01:49.6]} 15. Qd2 {[%clk 0:01:59.4]} 15... Nd7
{[%clk 0:01:45.5]} 16. Rfc1 {[%clk 0:01:58.4]} 16... Bf6 {[%clk 0:01:33.1]} 17.
d4 {[%clk 0:01:50.5]} 17... Qb6 {[%clk 0:01:26.1]} 18. e3 {[%clk 0:01:51.8]}
18... Ba6 {[%clk 0:01:23]} 19. Ne1 {[%clk 0:01:53]} 19... Be7 {[%clk 0:01:19.1]}
20. Qd1 {[%clk 0:01:37]} 20... Nf6 {[%clk 0:01:18.1]} 21. Nb1 {[%clk 0:01:32.2]}
21... Rxc1 {[%clk 0:01:13]} 22. Bxc1 {[%clk 0:01:33.8]} 22... Rc8 {[%clk
0:01:09.3]} 23. Bb2 {[%clk 0:01:30.7]} 23... Ne4 {[%clk 0:01:05.3]} 24. f3
{[%clk 0:01:31.9]} 24... Nd6 {[%clk 0:01:03.4]} 25. Nc3 {[%clk 0:01:31.8]} 25...
Nf5 {[%clk 0:01:00.8]} 26. Na4 {[%clk 0:01:29.4]} 26... Qb8 {[%clk 0:00:35.9]}
27. Bc1 {[%clk 0:01:22.1]} 27... h5 {[%clk 0:00:29.9]} 28. Bd2 {[%clk
0:01:21.9]} 28... g6 {[%clk 0:00:29.9]} 29. Rc1 {[%clk 0:01:12.1]} 29... Rxc1
{[%clk 0:00:29.6]} 30. Qxc1 {[%clk 0:01:14]} 30... Bd6 {[%clk 0:00:27.1]} 31.
Nc5 {[%clk 0:01:12.8]} 31... Bb5 {[%clk 0:00:27.4]} 32. Qa1 {[%clk 0:01:09.2]}
32... Qc7 {[%clk 0:00:26.3]} 33. Qc3 {[%clk 0:01:07.7]} 33... h4 {[%clk
0:00:25.7]} 34. f4 {[%clk 0:00:43]} 34... hxg3 {[%clk 0:00:26.1]} 35. Nf3 {[%clk
0:00:43.9]} 35... gxh2+ {[%clk 0:00:26.6]} 36. Kxh2 {[%clk 0:00:45.4]} 36... Qe7
{[%clk 0:00:18.3]} 37. Qa1 {[%clk 0:00:45.8]} 37... Qc7 {[%clk 0:00:18.7]} 38.
Qc3 {[%clk 0:00:45.8]} 38... Qe7 {[%clk 0:00:15.6]} 39. Qa1 {[%clk 0:00:46.6]}
39... Qc7 {[%clk 0:00:13.6]} 40. Qc1 {[%clk 0:00:46.6]} 40... Nd3 {[%clk
0:00:09.9]} 41. Nxd3 {[%clk 0:00:46.3]} 41... Bxd3 {[%clk 0:00:11.8]} 42. Qe1
{[%clk 0:00:38.8]} 42... Be4 {[%clk 0:00:10.6]} 43. Bxa5 {[%clk 0:00:38.4]}
43... Qc2 {[%clk 0:00:12.1]} 44. Bd2 {[%clk 0:00:29]} 44... Qxb3 {[%clk
0:00:12.1]} 45. Ng5 {[%clk 0:00:29.8]} 45... Bxg2 {[%clk 0:00:13]} 46. Kxg2
{[%clk 0:00:31.7]} 46... Qc2 {[%clk 0:00:14.4]} 47. Qf2 {[%clk 0:00:33.3]} 47...
Be7 {[%clk 0:00:15]} 48. Nf3 {[%clk 0:00:34.2]} 48... Nd6 {[%clk 0:00:16]} 49.
Be1 {[%clk 0:00:33.7]} 49... Qe4 {[%clk 0:00:16.6]} 50. Qe2 {[%clk 0:00:32.3]}
50... Nf5 {[%clk 0:00:17.7]} 51. Bf2 {[%clk 0:00:33.9]} 51... g5 {[%clk
0:00:16.5]} 52. fxg5 {[%clk 0:00:34.5]} 52... Bxg5 {[%clk 0:00:16.3]} 53. Kh2
{[%clk 0:00:20]} 53... Bxe3 {[%clk 0:00:16.3]} 54. Bxe3 {[%clk 0:00:21.6]} 54...
Qxe3 {[%clk 0:00:17]} 55. Qg2+ {[%clk 0:00:23.1]} 55... Kf8 {[%clk 0:00:18.4]}
56. Qg4 {[%clk 0:00:25]} 56... Qh6+ {[%clk 0:00:16.6]} 57. Kg1 {[%clk
0:00:25.2]} 57... Qg7 {[%clk 0:00:16.7]} 58. Qg2 {[%clk 0:00:24.2]} 58... Qxg2+
{[%clk 0:00:15]} 59. Kxg2 {[%clk 0:00:26.1]} 59... f6 {[%clk 0:00:16.9]} 60. Kh3
{[%clk 0:00:27.7]} 60... Kf7 {[%clk 0:00:18]} 61. Kg4 {[%clk 0:00:29.6]} 61...
Kg6 {[%clk 0:00:19.5]} 62. Kh3 {[%clk 0:00:30.3]} 62... Ne7 {[%clk 0:00:20.9]}
63. Kg4 {[%clk 0:00:31.4]} 63... Nc6 {[%clk 0:00:22.5]} 64. Nh4+ {[%clk
0:00:33]} 64... Kf7 {[%clk 0:00:23.6]} 65. Nf3 {[%clk 0:00:34.9]} 65... Ke7
{[%clk 0:00:25.2]} 66. Kg3 {[%clk 0:00:36.3]} 66... Kd6 {[%clk 0:00:26.6]} 67.
Kf2 {[%clk 0:00:37.9]} 67... e5 {[%clk 0:00:28.2]} 68. dxe5+ {[%clk 0:00:39.3]}
68... fxe5 {[%clk 0:00:30.1]} 69. Ke3 {[%clk 0:00:41.2]} 69... Nd8 {[%clk
0:00:28.9]} 70. Ng5 {[%clk 0:00:42.4]} 70... Ke7 {[%clk 0:00:21.9]} 71. Nf3
{[%clk 0:00:43.7]} 71... Kf6 {[%clk 0:00:22.6]} 72. Nh2 {[%clk 0:00:45.3]} 72...
Nf7 {[%clk 0:00:21.4]} 73. Nf3 {[%clk 0:00:46]} 73... Nd6 {[%clk 0:00:20.7]} 74.
Nh2 {[%clk 0:00:47.6]} 74... d4+ {[%clk 0:00:20.1]} 75. Kd3 {[%clk 0:00:48.5]}
75... Ke6 {[%clk 0:00:21.6]} 76. Ng4 {[%clk 0:00:49.1]} 76... Nb7 {[%clk
0:00:12.6]} 77. Kc4 {[%clk 0:00:49.3]} 77... Na5+ {[%clk 0:00:10.9]} 78. Kd3
{[%clk 0:00:50.6]} 78... Nc6 {[%clk 0:00:10.3]} 79. Ke4 {[%clk 0:00:51.4]} 79...
Kd6 {[%clk 0:00:10.9]} 80. Nxe5 {[%clk 0:00:25.1]} 80... Nxe5 {[%clk 0:00:05.4]}
81. Kxd4 {[%clk 0:00:02.3]} 1/2-1/2

[Event "*** Titled Tuesday 3|2 Blitz"]
[Site "Chess.com"]
[Date "2017.05.02"]
[Round "6"]
[White "matiss90"]
[Black "SCIM"]
[Result "1/2-1/2"]
[WhiteElo "2348"]
[BlackElo "2383"]
[TimeControl "180+2"]
[EndTime "14:21:42 PDT"]
[Termination "Game drawn - insufficient material"]

1. e4 {[%clk 0:03:02]} 1... c5 {[%clk 0:02:59.6]} 2. Nf3 {[%clk 0:03:02.3]} 2...
e6 {[%clk 0:03:00.7]} 3. d4 {[%clk 0:03:03]} 3... cxd4 {[%clk 0:03:01.7]} 4.
Nxd4 {[%clk 0:03:04.3]} 4... Nc6 {[%clk 0:03:03]} 5. Nc3 {[%clk 0:03:04.9]} 5...
Qc7 {[%clk 0:03:04.1]} 6. Be2 {[%clk 0:03:05.3]} 6... Nf6 {[%clk 0:03:03.3]} 7.
O-O {[%clk 0:03:05]} 7... Be7 {[%clk 0:03:04.6]} 8. Be3 {[%clk 0:02:59.6]} 8...
O-O {[%clk 0:03:00.4]} 9. Kh1 {[%clk 0:02:59.8]} 9... d6 {[%clk 0:02:54.5]} 10.
f4 {[%clk 0:03:00]} 10... Nxd4 {[%clk 0:02:54.4]} 11. Bxd4 {[%clk 0:03:00.2]}
11... b6 {[%clk 0:02:55.9]} 12. Qe1 {[%clk 0:02:59.8]} 12... Bb7 {[%clk
0:02:54.3]} 13. Qg3 {[%clk 0:03:00]} 13... Kh8 {[%clk 0:02:51.8]} 14. e5 {[%clk
0:02:57.2]} 14... dxe5 {[%clk 0:02:45.8]} 15. Bxe5 {[%clk 0:02:54.5]} 15... Qc6
{[%clk 0:02:26.4]} 16. Bf3 {[%clk 0:02:52.1]} 16... Qc8 {[%clk 0:02:26.1]} 17.
Ne4 {[%clk 0:02:47.8]} 17... Rg8 {[%clk 0:02:19.7]} 18. Ng5 {[%clk 0:02:47.6]}
18... Rf8 {[%clk 0:02:09]} 19. Bxb7 {[%clk 0:02:21.8]} 19... Qxb7 {[%clk
0:02:06.9]} 20. Qh3 {[%clk 0:02:20.2]} 20... h6 {[%clk 0:02:01.8]} 21. f5 {[%clk
0:02:17.6]} 21... exf5 {[%clk 0:01:55.7]} 22. Rxf5 {[%clk 0:02:16]} 22... Kg8
{[%clk 0:01:47.3]} 23. Bxf6 {[%clk 0:01:33.4]} 23... Bxf6 {[%clk 0:01:31.7]} 24.
Rxf6 {[%clk 0:01:33.4]} 24... hxg5 {[%clk 0:01:23.2]} 25. Rf5 {[%clk 0:01:28.5]}
25... Qe7 {[%clk 0:01:22.6]} 26. Raf1 {[%clk 0:01:27.2]} 26... Rac8 {[%clk
0:01:21.7]} 27. c3 {[%clk 0:01:03.7]} 27... Rc5 {[%clk 0:01:20.3]} 28. Rxc5
{[%clk 0:01:02.1]} 28... Qxc5 {[%clk 0:01:18.6]} 29. Qd3 {[%clk 0:01:01.7]}
29... Re8 {[%clk 0:01:15.6]} 30. h3 {[%clk 0:01:01.8]} 30... g6 {[%clk
0:01:01.8]} 31. a4 {[%clk 0:00:59.4]} 31... Kg7 {[%clk 0:00:57.3]} 32. b4 {[%clk
0:00:55.2]} 32... Qe5 {[%clk 0:00:53.7]} 33. Rd1 {[%clk 0:00:50.1]} 33... Re7
{[%clk 0:00:41.9]} 34. Kg1 {[%clk 0:00:48.5]} 34... Qf4 {[%clk 0:00:35.1]} 35.
Qd4+ {[%clk 0:00:48.2]} 35... Qxd4+ {[%clk 0:00:32.6]} 36. Rxd4 {[%clk
0:00:35.1]} 36... Re1+ {[%clk 0:00:32]} 37. Kf2 {[%clk 0:00:35]} 37... Ra1
{[%clk 0:00:32.9]} 38. b5 {[%clk 0:00:34.4]} 38... Kf6 {[%clk 0:00:27.8]} 39.
Rd7 {[%clk 0:00:33.9]} 39... Rxa4 {[%clk 0:00:26.9]} 40. Ke3 {[%clk 0:00:34]}
40... Ke6 {[%clk 0:00:26.1]} 41. Rc7 {[%clk 0:00:33.6]} 41... f5 {[%clk
0:00:22.4]} 42. c4 {[%clk 0:00:32.4]} 42... Ke5 {[%clk 0:00:20]} 43. Re7+ {[%clk
0:00:28.9]} 43... Kd6 {[%clk 0:00:20.6]} 44. Rg7 {[%clk 0:00:29.2]} 44... Rxc4
{[%clk 0:00:21.7]} 45. Rxg6+ {[%clk 0:00:28.7]} 45... Ke5 {[%clk 0:00:22.4]} 46.
Rxg5 {[%clk 0:00:27.2]} 46... Rc3+ {[%clk 0:00:23.3]} 47. Kd2 {[%clk 0:00:26.5]}
47... Rb3 {[%clk 0:00:23.4]} 48. g4 {[%clk 0:00:26.5]} 48... Rxh3 {[%clk
0:00:23.5]} 49. Rxf5+ {[%clk 0:00:26.7]} 49... Kd4 {[%clk 0:00:24.9]} 50. Ke2
{[%clk 0:00:23.1]} 50... Rg3 {[%clk 0:00:24.8]} 51. g5 {[%clk 0:00:20.8]} 51...
Ke4 {[%clk 0:00:25.4]} 52. Rf7 {[%clk 0:00:20.7]} 52... Rxg5 {[%clk 0:00:25.8]}
53. Rxa7 {[%clk 0:00:20.5]} 53... Rxb5 {[%clk 0:00:26.8]} 54. Kd2 {[%clk
0:00:18.4]} 54... Rc5 {[%clk 0:00:27.4]} 55. Ra3 {[%clk 0:00:15]} 55... b5
{[%clk 0:00:27]} 56. Rb3 {[%clk 0:00:15.1]} 56... Kd4 {[%clk 0:00:27]} 57. Rd3+
{[%clk 0:00:14.1]} 57... Ke5 {[%clk 0:00:25.5]} 58. Rc3 {[%clk 0:00:14.3]} 58...
Rd5+ {[%clk 0:00:24.8]} 59. Kc1 {[%clk 0:00:13.7]} 59... Kd4 {[%clk 0:00:24.6]}
60. Rh3 {[%clk 0:00:13]} 60... b4 {[%clk 0:00:25]} 61. Kb1 {[%clk 0:00:12.7]}
61... Kc4 {[%clk 0:00:25.6]} 62. Rh1 {[%clk 0:00:13.5]} 62... Kb3 {[%clk
0:00:24.2]} 63. Rg1 {[%clk 0:00:13.3]} 63... Rd2 {[%clk 0:00:24.3]} 64. Rh1
{[%clk 0:00:13.2]} 64... Ka3 {[%clk 0:00:25.3]} 65. Rg1 {[%clk 0:00:13.1]} 65...
Re2 {[%clk 0:00:26.1]} 66. Rh1 {[%clk 0:00:13.2]} 66... Rg2 {[%clk 0:00:26.7]}
67. Rf1 {[%clk 0:00:13.1]} 67... b3 {[%clk 0:00:27.6]} 68. Re1 {[%clk
0:00:13.3]} 68... Rb2+ {[%clk 0:00:27.7]} 69. Ka1 {[%clk 0:00:13.5]} 69... Rd2
{[%clk 0:00:28.3]} 70. Rf1 {[%clk 0:00:13.4]} 70... Ra2+ {[%clk 0:00:26.2]} 71.
Kb1 {[%clk 0:00:13.3]} 71... Rg2 {[%clk 0:00:27.5]} 72. Re1 {[%clk 0:00:13.4]}
72... Rf2 {[%clk 0:00:27.5]} 73. Rd1 {[%clk 0:00:13.4]} 73... Rb2+ {[%clk
0:00:27.6]} 74. Ka1 {[%clk 0:00:13.4]} 74... Ra2+ {[%clk 0:00:28.2]} 75. Kb1
{[%clk 0:00:13.5]} 75... Kb4 {[%clk 0:00:28.8]} 76. Re1 {[%clk 0:00:13.5]} 76...
Rd2 {[%clk 0:00:28.5]} 77. Rf1 {[%clk 0:00:13.5]} 77... Kc3 {[%clk 0:00:29.2]}
78. Re1 {[%clk 0:00:13.7]} 78... Rb2+ {[%clk 0:00:29.7]} 79. Ka1 {[%clk
0:00:13.6]} 79... Ra2+ {[%clk 0:00:30.5]} 80. Kb1 {[%clk 0:00:13.4]} 80... Ra4
{[%clk 0:00:29.9]} 81. Rf1 {[%clk 0:00:13.4]} 81... Rd4 {[%clk 0:00:29.5]} 82.
Re1 {[%clk 0:00:13.3]} 82... Rd3 {[%clk 0:00:30.4]} 83. Rf1 {[%clk 0:00:13]}
83... b2 {[%clk 0:00:31.4]} 84. Re1 {[%clk 0:00:11.9]} 84... Kb3 {[%clk
0:00:32.1]} 85. Re3 {[%clk 0:00:11.4]} 85... Rc3 {[%clk 0:00:30.5]} 86. Rd3
{[%clk 0:00:10.3]} 86... Kc4 {[%clk 0:00:26.1]} 87. Rd2 {[%clk 0:00:08.3]} 87...
Rb3 {[%clk 0:00:22.6]} 88. Rxb2 {[%clk 0:00:08]} 88... Rxb2+ {[%clk 0:00:21.8]}
89. Kxb2 {[%clk 0:00:07.9]} 1/2-1/2